[Event "Betsys MČR v online bleskovém šachu 2021"]
[Site "Chess.com"]
[Date "2021.04.17"]
[Round "4"]
[White "avsokol"]
[Black "TheFr0zenSun"]
[Result "1/2-1/2"]
[WhiteElo "2390"]
[BlackElo "2246"]
[TimeControl "180+1"]
[EndTime "9:37:50 PDT"]
[Termination "Remíza dohodou"]

1. e4 {[%clk 0:03:00.9]} 1... e5 {[%clk 0:02:57.9]} 2. f4 {[%clk 0:02:58.9]}
2... exf4 {[%clk 0:02:56]} 3. Nf3 {[%clk 0:02:59.1]} 3... Ne7 {[%clk 0:02:56.5]}
4. d4 {[%clk 0:02:57.5]} 4... d5 {[%clk 0:02:56.3]} 5. Nc3 {[%clk 0:02:56.8]}
5... dxe4 {[%clk 0:02:48.9]} 6. Nxe4 {[%clk 0:02:56.6]} 6... Ng6 {[%clk
0:02:48.8]} 7. h4 {[%clk 0:02:56.6]} 7... Be7 {[%clk 0:02:40.6]} 8. h5 {[%clk
0:02:55.7]} 8... Nh4 {[%clk 0:02:40.7]} 9. Bxf4 {[%clk 0:02:48.5]} 9... h6
{[%clk 0:02:36.1]} 10. Nxh4 {[%clk 0:02:39]} 10... Bxh4+ {[%clk 0:02:35]} 11. g3
{[%clk 0:02:38.2]} 11... Be7 {[%clk 0:02:34.7]} 12. Qd2 {[%clk 0:02:18.3]} 12...
Bg4 {[%clk 0:02:26]} 13. Bg2 {[%clk 0:02:10.6]} 13... c6 {[%clk 0:02:22.3]} 14.
Nf2 {[%clk 0:02:09]} 14... Be6 {[%clk 0:02:21.1]} 15. a3 {[%clk 0:01:37]} 15...
Nd7 {[%clk 0:02:13.8]} 16. Bf3 {[%clk 0:01:31.9]} 16... Nb6 {[%clk 0:02:13.1]}
17. b3 {[%clk 0:01:26.5]} 17... Nd5 {[%clk 0:02:12.3]} 18. Nd3 {[%clk
0:01:19.2]} 18... Bf6 {[%clk 0:02:08.4]} 19. Be5 {[%clk 0:01:14.7]} 19... Bxe5
{[%clk 0:01:57.2]} 20. Nxe5 {[%clk 0:01:11.2]} 20... Qb6 {[%clk 0:01:39]} 21.
O-O-O {[%clk 0:01:06.3]} 21... O-O-O {[%clk 0:01:35.9]} 22. Kb2 {[%clk 0:01:03]}
22... f6 {[%clk 0:01:24.9]} 23. Nc4 {[%clk 0:01:01.6]} 23... Qc7 {[%clk
0:01:23.2]} 24. Rhe1 {[%clk 0:00:54.4]} 24... Rhe8 {[%clk 0:01:20.4]} 25. Qf2
{[%clk 0:00:46.5]} 25... Nb6 {[%clk 0:01:12.4]} 26. Ne3 {[%clk 0:00:39.1]} 26...
Kb8 {[%clk 0:01:06.7]} 27. Rd2 {[%clk 0:00:38.9]} 27... Qf7 {[%clk 0:01:01.5]}
28. Ng2 {[%clk 0:00:35.1]} 28... Bd5 {[%clk 0:00:58.3]} 29. Nf4 {[%clk
0:00:33.2]} 29... Rxe1 {[%clk 0:00:49.8]} 30. Bxd5 {[%clk 0:00:32.6]} 30... Nxd5
{[%clk 0:00:44.5]} 31. Qxe1 {[%clk 0:00:30.3]} 31... Nxf4 {[%clk 0:00:44.2]} 32.
gxf4 {[%clk 0:00:30.2]} 32... Qxh5 {[%clk 0:00:43.9]} 33. Qe7 {[%clk 0:00:27.6]}
33... Re8 {[%clk 0:00:24.9]} 34. Qxg7 {[%clk 0:00:26.5]} 34... f5 {[%clk
0:00:24.1]} 35. Qd7 {[%clk 0:00:22.1]} 35... Qg6 {[%clk 0:00:19.4]} 36. Rg2
{[%clk 0:00:19]} 36... Qe6 {[%clk 0:00:17.3]} 37. Qxe6 {[%clk 0:00:16.9]} 37...
Rxe6 {[%clk 0:00:17.1]} 38. Rg8+ {[%clk 0:00:17.5]} 38... Kc7 {[%clk 0:00:16.3]}
39. Rf8 {[%clk 0:00:17.6]} 39... Re4 {[%clk 0:00:14.6]} 40. Rxf5 {[%clk
0:00:17.5]} 40... Rxd4 {[%clk 0:00:14.9]} 41. Kc3 {[%clk 0:00:17.7]} 41... Rd6
{[%clk 0:00:14.5]} 42. Rf7+ {[%clk 0:00:17]} 42... Kb6 {[%clk 0:00:14.4]} 43.
Rh7 {[%clk 0:00:15.4]} 43... Rf6 {[%clk 0:00:14]} 44. Kd3 {[%clk 0:00:15.5]}
44... Rxf4 {[%clk 0:00:13.8]} 45. Rxh6 {[%clk 0:00:15.9]} 45... Rf5 {[%clk
0:00:13.9]} 46. Kc4 {[%clk 0:00:15.4]} 46... a5 {[%clk 0:00:13.8]} 47. Kc3
{[%clk 0:00:14.9]} 47... Rc5+ {[%clk 0:00:13.8]} 48. Kb2 {[%clk 0:00:14.7]}
48... Rb5 {[%clk 0:00:13.7]} 49. Rh4 {[%clk 0:00:13.8]} 49... Re5 {[%clk
0:00:14]} 50. Kc3 {[%clk 0:00:12.9]} 50... Rc5+ {[%clk 0:00:13.1]} 1/2-1/2

[Event "Betsys MČR v online bleskovém šachu 2021"]
[Site "Chess.com"]
[Date "2021.04.17"]
[Round "4"]
[White "phil3"]
[Black "Filipdol"]
[Result "0-1"]
[WhiteElo "2146"]
[BlackElo "1880"]
[TimeControl "180+1"]
[EndTime "9:37:50 PDT"]
[Termination "Uživatel Filipdol zvítězil po vzdání soupeře"]

1. e4 {[%clk 0:03:00.9]} 1... c5 {[%clk 0:02:56.4]} 2. Nf3 {[%clk 0:03:00.5]}
2... a6 {[%clk 0:02:56.1]} 3. c3 {[%clk 0:03:00.1]} 3... d5 {[%clk 0:02:55.1]}
4. exd5 {[%clk 0:03:00.7]} 4... Qxd5 {[%clk 0:02:55.7]} 5. d4 {[%clk 0:03:01.3]}
5... Nf6 {[%clk 0:02:55.6]} 6. dxc5 {[%clk 0:03:00.1]} 6... Qxd1+ {[%clk
0:02:54.7]} 7. Kxd1 {[%clk 0:03:00.5]} 7... Bg4 {[%clk 0:02:48.3]} 8. Be3 {[%clk
0:02:44.2]} 8... e6 {[%clk 0:02:47]} 9. Nd2 {[%clk 0:02:40.7]} 9... Nd5 {[%clk
0:02:46.3]} 10. Bd4 {[%clk 0:02:38.9]} 10... Nc6 {[%clk 0:02:44.2]} 11. h3
{[%clk 0:02:36.4]} 11... Bh5 {[%clk 0:02:34.3]} 12. Bc4 {[%clk 0:02:17.1]} 12...
O-O-O {[%clk 0:02:05.3]} 13. Kc1 {[%clk 0:01:25.8]} 13... f6 {[%clk 0:01:40.8]}
14. Ne4 {[%clk 0:00:36]} 14... e5 {[%clk 0:01:22.3]} 15. Be3 {[%clk 0:00:35.9]}
15... Bg6 {[%clk 0:01:02.1]} 16. Nd6+ {[%clk 0:00:16.9]} 16... Bxd6 {[%clk
0:00:59.9]} 17. cxd6 {[%clk 0:00:17.2]} 17... Nxe3 {[%clk 0:00:53.2]} 18. fxe3
{[%clk 0:00:12.4]} 18... Rxd6 {[%clk 0:00:52.6]} 19. Rd1 {[%clk 0:00:10.4]}
19... Rxd1+ {[%clk 0:00:52]} 20. Kxd1 {[%clk 0:00:10.3]} 20... Rd8+ {[%clk
0:00:52.6]} 21. Ke2 {[%clk 0:00:07.9]} 21... Kc7 {[%clk 0:00:51.4]} 22. Rd1
{[%clk 0:00:06.8]} 22... Rxd1 {[%clk 0:00:49.5]} 23. Kxd1 {[%clk 0:00:07]} 23...
Ne7 {[%clk 0:00:44.5]} 24. Kd2 {[%clk 0:00:06]} 24... Kd6 {[%clk 0:00:44.4]} 25.
Bb3 {[%clk 0:00:05.8]} 25... Be4 {[%clk 0:00:41.1]} 26. a3 {[%clk 0:00:05.5]}
26... Bc6 {[%clk 0:00:39.9]} 27. Ke2 {[%clk 0:00:05.2]} 27... Nd5 {[%clk
0:00:38.5]} 28. Kf2 {[%clk 0:00:05.5]} 28... h6 {[%clk 0:00:34.8]} 29. Ke2
{[%clk 0:00:05.8]} 29... Ne7 {[%clk 0:00:34.6]} 30. Bc2 {[%clk 0:00:05.1]} 30...
f5 {[%clk 0:00:29.6]} 31. b4 {[%clk 0:00:04.9]} 31... b5 {[%clk 0:00:27.7]} 32.
Bb3 {[%clk 0:00:04.6]} 32... Bd5 {[%clk 0:00:27.3]} 33. Bc2 {[%clk 0:00:03.6]}
33... Bc4+ {[%clk 0:00:24.4]} 34. Kd2 {[%clk 0:00:03.9]} 34... g6 {[%clk
0:00:22]} 35. Ne1 {[%clk 0:00:03.9]} 35... Kd5 {[%clk 0:00:20.1]} 36. Nd3 {[%clk
0:00:04.3]} 36... Bxd3 {[%clk 0:00:20.1]} 37. Bxd3 {[%clk 0:00:04.3]} 37... e4
{[%clk 0:00:19.8]} 38. Be2 {[%clk 0:00:04.2]} 38... Nc6 {[%clk 0:00:20.5]} 39.
Kc2 {[%clk 0:00:02.4]} 39... Ne5 {[%clk 0:00:21.1]} 40. Kb2 {[%clk 0:00:02]}
40... Nc4+ {[%clk 0:00:20.3]} 41. Bxc4+ {[%clk 0:00:02.3]} 41... Kxc4 {[%clk
0:00:21.1]} 42. Kc2 {[%clk 0:00:02.7]} 42... g5 {[%clk 0:00:21.2]} 43. g3 {[%clk
0:00:02.7]} 43... h5 {[%clk 0:00:21.5]} 44. Kd2 {[%clk 0:00:02.8]} 44... Kb3
{[%clk 0:00:20.1]} 45. h4 {[%clk 0:00:03.2]} 45... gxh4 {[%clk 0:00:19.4]} 46.
gxh4 {[%clk 0:00:02.8]} 46... Kxa3 {[%clk 0:00:20]} 47. Kc2 {[%clk 0:00:02.9]}
47... Ka2 {[%clk 0:00:19.8]} 48. Kd2 {[%clk 0:00:03.1]} 48... Kb3 {[%clk
0:00:20]} 49. Ke2 {[%clk 0:00:03.2]} 49... Kc4 {[%clk 0:00:20.6]} 50. Kd2 {[%clk
0:00:03.4]} 50... Kb3 {[%clk 0:00:20.7]} 51. Ke2 {[%clk 0:00:03.9]} 51... Kxc3
{[%clk 0:00:21.3]} 52. Kf2 {[%clk 0:00:04.5]} 52... Kxb4 {[%clk 0:00:22]} 53.
Kg3 {[%clk 0:00:05.1]} 53... Kc3 {[%clk 0:00:22.6]} 54. Kf4 {[%clk 0:00:05.6]}
54... b4 {[%clk 0:00:22.3]} 55. Kxf5 {[%clk 0:00:06.1]} 55... b3 {[%clk
0:00:22.7]} 56. Kxe4 {[%clk 0:00:06.7]} 56... b2 {[%clk 0:00:23.5]} 0-1

[Event "Betsys MČR v online bleskovém šachu 2021"]
[Site "Chess.com"]
[Date "2021.04.17"]
[Round "4"]
[White "HCMotorCB"]
[Black "VojtechPlat"]
[Result "1/2-1/2"]
[WhiteElo "2379"]
[BlackElo "2858"]
[TimeControl "180+1"]
[EndTime "9:37:53 PDT"]
[Termination "Remíza patem"]

1. c4 {[%clk 0:03:00.9]} 1... d6 {[%clk 0:02:59.2]} 2. g3 {[%clk 0:03:00.8]}
2... e5 {[%clk 0:02:59.1]} 3. Bg2 {[%clk 0:03:01.1]} 3... Nf6 {[%clk 0:02:58.5]}
4. e3 {[%clk 0:02:58.7]} 4... c6 {[%clk 0:02:58.5]} 5. Nc3 {[%clk 0:02:58.3]}
5... Nbd7 {[%clk 0:02:58.5]} 6. Nge2 {[%clk 0:02:57.2]} 6... Be7 {[%clk
0:02:58.5]} 7. d3 {[%clk 0:02:57.4]} 7... a5 {[%clk 0:02:58]} 8. O-O {[%clk
0:02:57.1]} 8... O-O {[%clk 0:02:58]} 9. Rb1 {[%clk 0:02:57.2]} 9... Nc5 {[%clk
0:02:55.4]} 10. a3 {[%clk 0:02:56.4]} 10... Bf5 {[%clk 0:02:52.7]} 11. e4 {[%clk
0:02:55.1]} 11... Bd7 {[%clk 0:02:51.6]} 12. b4 {[%clk 0:02:54.2]} 12... axb4
{[%clk 0:02:51.8]} 13. axb4 {[%clk 0:02:55.1]} 13... Ne6 {[%clk 0:02:51.7]} 14.
h3 {[%clk 0:02:50.3]} 14... Re8 {[%clk 0:02:48]} 15. Be3 {[%clk 0:02:49.2]}
15... Bf8 {[%clk 0:02:45.8]} 16. Ra1 {[%clk 0:02:47.6]} 16... Qc7 {[%clk
0:02:44.6]} 17. Qb3 {[%clk 0:02:44]} 17... h5 {[%clk 0:02:39.6]} 18. Qb2 {[%clk
0:02:39.2]} 18... g6 {[%clk 0:02:20.7]} 19. Rxa8 {[%clk 0:02:37.6]} 19... Rxa8
{[%clk 0:02:20.5]} 20. Ra1 {[%clk 0:02:38.2]} 20... Rxa1+ {[%clk 0:02:20.8]} 21.
Qxa1 {[%clk 0:02:39.1]} 21... Nh7 {[%clk 0:02:14.8]} 22. Qa8 {[%clk 0:02:34.2]}
22... Kg7 {[%clk 0:02:11.2]} 23. f4 {[%clk 0:02:17.7]} 23... f6 {[%clk
0:02:03.2]} 24. Qa7 {[%clk 0:02:02.2]} 24... Be7 {[%clk 0:01:58.8]} 25. Bb6
{[%clk 0:02:00]} 25... Qc8 {[%clk 0:01:57.7]} 26. Kh2 {[%clk 0:01:49.7]} 26...
f5 {[%clk 0:01:51.9]} 27. exf5 {[%clk 0:01:40.3]} 27... gxf5 {[%clk 0:01:51.1]}
28. b5 {[%clk 0:01:34.4]} 28... h4 {[%clk 0:01:48.9]} 29. g4 {[%clk 0:01:20.1]}
29... fxg4 {[%clk 0:01:47.1]} 30. hxg4 {[%clk 0:01:21]} 30... Nxf4 {[%clk
0:01:43.4]} 31. Nxf4 {[%clk 0:01:20.1]} 31... exf4 {[%clk 0:01:43.2]} 32. Bd4+
{[%clk 0:01:12.4]} 32... Bf6 {[%clk 0:01:41.5]} 33. Ne4 {[%clk 0:01:08.2]} 33...
Be5 {[%clk 0:01:33.9]} 34. Nxd6 {[%clk 0:01:01.3]} 34... Qd8 {[%clk 0:01:17.9]}
35. Bxe5+ {[%clk 0:01:00.9]} 35... Kg8 {[%clk 0:01:17.6]} 36. Qxb7 {[%clk
0:00:53.6]} 36... f3 {[%clk 0:01:15.8]} 37. Bxf3 {[%clk 0:00:50.5]} 37... Qg5
{[%clk 0:01:15.6]} 38. Qb8+ {[%clk 0:00:28.8]} 38... Nf8 {[%clk 0:01:14.5]} 39.
Ne4 {[%clk 0:00:19]} 39... Qe3 {[%clk 0:01:14.2]} 40. Nf6+ {[%clk 0:00:17.4]}
40... Kf7 {[%clk 0:01:13.8]} 41. Nxd7 {[%clk 0:00:14.9]} 41... Nxd7 {[%clk
0:01:10.7]} 42. Qc7 {[%clk 0:00:09.1]} 42... Qxe5+ {[%clk 0:00:59.1]} 43. Qxe5
{[%clk 0:00:08.8]} 43... Nxe5 {[%clk 0:00:59]} 44. Bxc6 {[%clk 0:00:09.7]} 44...
Nxg4+ {[%clk 0:00:57.1]} 45. Kh3 {[%clk 0:00:09.3]} 45... Nf2+ {[%clk
0:00:57.1]} 46. Kxh4 {[%clk 0:00:09.5]} 46... Nxd3 {[%clk 0:00:57.2]} 47. b6
{[%clk 0:00:08.3]} 47... Nc5 {[%clk 0:00:57.2]} 48. b7 {[%clk 0:00:06.7]} 48...
Na6 {[%clk 0:00:57.1]} 49. Kg4 {[%clk 0:00:05]} 49... Ke7 {[%clk 0:00:56.5]} 50.
Kf4 {[%clk 0:00:05.2]} 50... Kd6 {[%clk 0:00:55.9]} 51. Bd5 {[%clk 0:00:05.5]}
51... Kc7 {[%clk 0:00:53]} 52. Ke4 {[%clk 0:00:05.8]} 52... Nc5+ {[%clk
0:00:52.7]} 53. Ke5 {[%clk 0:00:06]} 53... Nd3+ {[%clk 0:00:52.1]} 54. Kd4
{[%clk 0:00:06]} 54... Nb4 {[%clk 0:00:51.4]} 55. c5 {[%clk 0:00:05.6]} 55...
Na6 {[%clk 0:00:48.9]} 56. c6 {[%clk 0:00:05.2]} 56... Kb8 {[%clk 0:00:48.8]}
57. Kc4 {[%clk 0:00:05.2]} 57... Nc7 {[%clk 0:00:47.5]} 58. Kc5 {[%clk
0:00:05.1]} 58... Na6+ {[%clk 0:00:47.3]} 59. Kd6 {[%clk 0:00:05.3]} 59... Nc7
{[%clk 0:00:47.2]} 60. Bc4 {[%clk 0:00:04.4]} 60... Ne8+ {[%clk 0:00:43.3]} 61.
Kd7 {[%clk 0:00:04.7]} 61... Nc7 {[%clk 0:00:43.3]} 62. Kd8 {[%clk 0:00:04.5]}
62... Ka7 {[%clk 0:00:43.3]} 63. Kxc7 {[%clk 0:00:01.6]} 1/2-1/2

[Event "Betsys MČR v online bleskovém šachu 2021"]
[Site "Chess.com"]
[Date "2021.04.17"]
[Round "4"]
[White "5265"]
[Black "PetrVelicka"]
[Result "0-1"]
[WhiteElo "1627"]
[BlackElo "2387"]
[TimeControl "180+1"]
[EndTime "9:37:53 PDT"]
[Termination "Uživatel PetrVelicka zvítězil po vzdání soupeře"]

1. e4 {[%clk 0:03:00.9]} 1... Nf6 {[%clk 0:02:59.3]} 2. Nc3 {[%clk 0:02:59.1]}
2... e5 {[%clk 0:02:58.5]} 3. f4 {[%clk 0:02:58.8]} 3... d5 {[%clk 0:02:56.7]}
4. fxe5 {[%clk 0:02:43.7]} 4... Nxe4 {[%clk 0:02:56.5]} 5. Nf3 {[%clk 0:02:42]}
5... Nc6 {[%clk 0:02:55]} 6. Bb5 {[%clk 0:02:38.6]} 6... Bg4 {[%clk 0:02:51]} 7.
O-O {[%clk 0:02:29.1]} 7... Be7 {[%clk 0:02:44.7]} 8. h3 {[%clk 0:02:25.1]} 8...
Bh5 {[%clk 0:02:41.8]} 9. d3 {[%clk 0:02:20.9]} 9... Nxc3 {[%clk 0:02:40.5]} 10.
bxc3 {[%clk 0:02:17.1]} 10... O-O {[%clk 0:02:35.7]} 11. Qe1 {[%clk 0:02:13.9]}
11... Bxf3 {[%clk 0:02:29.8]} 12. Rxf3 {[%clk 0:02:10.7]} 12... d4 {[%clk
0:02:29.8]} 13. Bxc6 {[%clk 0:02:06.5]} 13... bxc6 {[%clk 0:02:28.5]} 14. Qg3
{[%clk 0:01:54.1]} 14... g6 {[%clk 0:01:57.5]} 15. c4 {[%clk 0:01:35.9]} 15...
Qd7 {[%clk 0:01:54.1]} 16. Bg5 {[%clk 0:01:32.2]} 16... Bxg5 {[%clk 0:01:49.9]}
17. Qxg5 {[%clk 0:01:31.8]} 17... Rae8 {[%clk 0:01:50.3]} 18. Re1 {[%clk
0:01:24.2]} 18... Re6 {[%clk 0:01:49.2]} 19. Re4 {[%clk 0:01:14.8]} 19... Rfe8
{[%clk 0:01:28.8]} 20. Rff4 {[%clk 0:01:13.8]} 20... c5 {[%clk 0:01:26.7]} 21.
Rf6 {[%clk 0:01:09.7]} 21... Qe7 {[%clk 0:01:23.6]} 22. Qf4 {[%clk 0:01:04.6]}
22... Qd7 {[%clk 0:01:15.5]} 23. h4 {[%clk 0:00:49.2]} 23... R8e7 {[%clk
0:00:51.4]} 24. h5 {[%clk 0:00:38.1]} 24... Qe8 {[%clk 0:00:50.6]} 25. hxg6
{[%clk 0:00:33.1]} 25... hxg6 {[%clk 0:00:31.9]} 26. Qg3 {[%clk 0:00:13]} 26...
Rxf6 {[%clk 0:00:26.1]} 27. exf6 {[%clk 0:00:12.3]} 27... Rxe4 {[%clk 0:00:26]}
28. dxe4 {[%clk 0:00:12.6]} 28... Qxe4 {[%clk 0:00:26.4]} 29. Qxc7 {[%clk
0:00:13]} 29... Qe3+ {[%clk 0:00:26.5]} 30. Kh2 {[%clk 0:00:12.6]} 30... Qg5
{[%clk 0:00:18.2]} 31. Qc8+ {[%clk 0:00:11.5]} 31... Kh7 {[%clk 0:00:17.9]} 32.
Qh3+ {[%clk 0:00:09.4]} 32... Qh6 {[%clk 0:00:17.3]} 33. Kg3 {[%clk 0:00:06.2]}
33... Qxh3+ {[%clk 0:00:16.8]} 34. gxh3 {[%clk 0:00:06.4]} 34... g5 {[%clk
0:00:16.3]} 35. Kf3 {[%clk 0:00:03.6]} 35... Kg6 {[%clk 0:00:16.2]} 36. Ke4
{[%clk 0:00:03.8]} 36... Kxf6 {[%clk 0:00:16.4]} 37. Kd5 {[%clk 0:00:04.1]}
37... Ke7 {[%clk 0:00:14.3]} 38. Kxc5 {[%clk 0:00:04.4]} 38... f5 {[%clk
0:00:14]} 39. Kxd4 {[%clk 0:00:04.8]} 39... f4 {[%clk 0:00:14.3]} 40. Ke4 {[%clk
0:00:04.9]} 40... Kd6 {[%clk 0:00:14.4]} 41. Kf3 {[%clk 0:00:02.1]} 41... Kc5
{[%clk 0:00:13.2]} 42. h4 {[%clk 0:00:02.9]} 42... gxh4 {[%clk 0:00:12.7]} 43.
Kxf4 {[%clk 0:00:03.5]} 43... Kxc4 {[%clk 0:00:13.1]} 44. Kg4 {[%clk 0:00:03.7]}
44... Kc3 {[%clk 0:00:13.7]} 45. Kxh4 {[%clk 0:00:04.5]} 45... Kxc2 {[%clk
0:00:14]} 46. Kg4 {[%clk 0:00:04.7]} 46... a5 {[%clk 0:00:12.7]} 47. a4 {[%clk
0:00:03.7]} 47... Kb3 {[%clk 0:00:12.1]} 48. Kf3 {[%clk 0:00:04.5]} 48... Kxa4
{[%clk 0:00:12.1]} 49. Ke2 {[%clk 0:00:05.4]} 49... Kb3 {[%clk 0:00:12.1]} 50.
Kd2 {[%clk 0:00:06.1]} 50... Kb2 {[%clk 0:00:12.4]} 51. Kd3 {[%clk 0:00:06.6]}
51... a4 {[%clk 0:00:12.8]} 52. Kc4 {[%clk 0:00:06.9]} 52... a3 {[%clk
0:00:13.4]} 53. Kb4 {[%clk 0:00:07.4]} 53... a2 {[%clk 0:00:14.2]} 0-1

[Event "Betsys MČR v online bleskovém šachu 2021"]
[Site "Chess.com"]
[Date "2021.04.17"]
[Round "4"]
[White "Dejfos"]
[Black "povrlak60"]
[Result "0-1"]
[WhiteElo "1801"]
[BlackElo "1569"]
[TimeControl "180+1"]
[EndTime "9:37:54 PDT"]
[Termination "Uživatel povrlak60 zvítězil na čas"]

1. e4 {[%clk 0:02:33.6]} 1... c5 {[%clk 0:02:57.9]} 2. c3 {[%clk 0:02:30.6]}
2... d5 {[%clk 0:02:56.8]} 3. exd5 {[%clk 0:02:30.4]} 3... Qxd5 {[%clk
0:02:56.6]} 4. d4 {[%clk 0:02:30.6]} 4... Nf6 {[%clk 0:02:55.5]} 5. Nf3 {[%clk
0:02:30.2]} 5... Bg4 {[%clk 0:02:54.4]} 6. Be2 {[%clk 0:02:29.6]} 6... Nc6
{[%clk 0:02:54.2]} 7. Be3 {[%clk 0:02:28.5]} 7... e6 {[%clk 0:02:53.2]} 8. O-O
{[%clk 0:02:28.6]} 8... cxd4 {[%clk 0:02:52.1]} 9. cxd4 {[%clk 0:02:28.3]} 9...
Be7 {[%clk 0:02:41.6]} 10. Nc3 {[%clk 0:02:27.6]} 10... Qd8 {[%clk 0:02:41.1]}
11. h3 {[%clk 0:02:27.5]} 11... Bh5 {[%clk 0:02:36.5]} 12. a3 {[%clk 0:02:16.7]}
12... O-O {[%clk 0:02:34.5]} 13. Qd3 {[%clk 0:02:12.9]} 13... a6 {[%clk
0:02:26.7]} 14. Rad1 {[%clk 0:02:11.9]} 14... Bg6 {[%clk 0:02:23.9]} 15. Qd2
{[%clk 0:02:09.4]} 15... Rc8 {[%clk 0:02:13.2]} 16. Ne5 {[%clk 0:02:08.5]} 16...
Nxe5 {[%clk 0:01:46.3]} 17. dxe5 {[%clk 0:02:06.9]} 17... Qxd2 {[%clk
0:01:28.6]} 18. Rxd2 {[%clk 0:02:05.8]} 18... Ne4 {[%clk 0:01:16]} 19. Nxe4
{[%clk 0:02:03.3]} 19... Bxe4 {[%clk 0:01:15.5]} 20. Rfd1 {[%clk 0:01:56.5]}
20... Rfd8 {[%clk 0:01:12.1]} 21. Rxd8+ {[%clk 0:01:54.8]} 21... Rxd8 {[%clk
0:01:11.8]} 22. Rxd8+ {[%clk 0:01:53.5]} 22... Bxd8 {[%clk 0:01:11]} 23. f3
{[%clk 0:01:47.1]} 23... Bc6 {[%clk 0:01:05.6]} 24. Kf2 {[%clk 0:01:44.1]} 24...
Kf8 {[%clk 0:01:04.2]} 25. b4 {[%clk 0:01:41.2]} 25... Bc7 {[%clk 0:01:02.1]}
26. Bc5+ {[%clk 0:01:40.2]} 26... Ke8 {[%clk 0:00:59.9]} 27. f4 {[%clk
0:01:37.9]} 27... Kd7 {[%clk 0:00:57.8]} 28. g4 {[%clk 0:01:28.6]} 28... Bd5
{[%clk 0:00:43.7]} 29. Ke3 {[%clk 0:01:15.8]} 29... Kc6 {[%clk 0:00:41.3]} 30.
Bf8 {[%clk 0:01:06.2]} 30... g6 {[%clk 0:00:38.3]} 31. Kd4 {[%clk 0:01:00.4]}
31... Bb6+ {[%clk 0:00:37.4]} 32. Bc5 {[%clk 0:00:48.4]} 32... Bd8 {[%clk
0:00:33.6]} 33. a4 {[%clk 0:00:38.2]} 33... Bb3 {[%clk 0:00:29.7]} 34. b5+
{[%clk 0:00:36.9]} 34... axb5 {[%clk 0:00:26.1]} 35. Bxb5+ {[%clk 0:00:35]}
35... Kc7 {[%clk 0:00:24.2]} 36. Bd6+ {[%clk 0:00:31.9]} 36... Kc8 {[%clk
0:00:22.7]} 37. Bd3 {[%clk 0:00:19]} 37... Bd5 {[%clk 0:00:21.5]} 38. f5 {[%clk
0:00:18.4]} 38... Bh4 {[%clk 0:00:19.6]} 39. fxg6 {[%clk 0:00:15.8]} 39... hxg6
{[%clk 0:00:17.5]} 40. Kc5 {[%clk 0:00:13]} 40... Bg2 {[%clk 0:00:16.1]} 41. a5
{[%clk 0:00:11.3]} 41... Bxh3 {[%clk 0:00:15.3]} 42. Be2 {[%clk 0:00:09.6]}
42... Bg2 {[%clk 0:00:13.5]} 43. a6 {[%clk 0:00:08.2]} 43... Bf2+ {[%clk
0:00:12.6]} 44. Kb5 {[%clk 0:00:05.3]} 44... bxa6+ {[%clk 0:00:11.1]} 45. Kxa6
{[%clk 0:00:05.4]} 45... Kd7 {[%clk 0:00:10.5]} 46. Kb5 {[%clk 0:00:04.1]} 46...
Bd5 {[%clk 0:00:09.2]} 47. Kb4 {[%clk 0:00:03]} 47... Be1+ {[%clk 0:00:08.7]}
48. Kc5 {[%clk 0:00:01.5]} 48... Bg3 {[%clk 0:00:08.2]} 0-1

[Event "Betsys MČR v online bleskovém šachu 2021"]
[Site "Chess.com"]
[Date "2021.04.17"]
[Round "4"]
[White "prosinec"]
[Black "valid88"]
[Result "1-0"]
[WhiteElo "1725"]
[BlackElo "1339"]
[TimeControl "180+1"]
[EndTime "9:37:54 PDT"]
[Termination "Uživatel prosinec zvítězil matem"]

1. Nf3 {[%clk 0:03:00.9]} 1... d5 {[%clk 0:02:58.7]} 2. d4 {[%clk 0:03:00.5]}
2... Nf6 {[%clk 0:02:57]} 3. b3 {[%clk 0:02:59.3]} 3... Bf5 {[%clk 0:02:51]} 4.
Bb2 {[%clk 0:02:57]} 4... e6 {[%clk 0:02:49]} 5. e3 {[%clk 0:02:53.5]} 5... c5
{[%clk 0:02:48.6]} 6. Nbd2 {[%clk 0:02:49.3]} 6... a6 {[%clk 0:02:48.4]} 7. c4
{[%clk 0:02:48.8]} 7... Nc6 {[%clk 0:02:40.7]} 8. a3 {[%clk 0:02:27.3]} 8... Be7
{[%clk 0:02:33.6]} 9. Be2 {[%clk 0:02:23.8]} 9... O-O {[%clk 0:02:32.9]} 10. O-O
{[%clk 0:02:22.8]} 10... cxd4 {[%clk 0:02:27.7]} 11. Nxd4 {[%clk 0:02:20.5]}
11... Nxd4 {[%clk 0:02:27.1]} 12. Bxd4 {[%clk 0:02:19.1]} 12... dxc4 {[%clk
0:02:15.5]} 13. Nxc4 {[%clk 0:02:20]} 13... Rc8 {[%clk 0:02:11.9]} 14. b4 {[%clk
0:01:57.2]} 14... b5 {[%clk 0:01:55.7]} 15. Na5 {[%clk 0:01:42.3]} 15... Rc7
{[%clk 0:01:47]} 16. Qb3 {[%clk 0:01:28.6]} 16... Qc8 {[%clk 0:01:43.2]} 17. Bd3
{[%clk 0:01:13.3]} 17... Ne4 {[%clk 0:01:34.9]} 18. Qb2 {[%clk 0:00:51.2]} 18...
Bf6 {[%clk 0:01:18.1]} 19. Bxe4 {[%clk 0:00:42.1]} 19... Bxd4 {[%clk 0:01:11.3]}
20. Qxd4 {[%clk 0:00:43]} 20... Bxe4 {[%clk 0:01:11.6]} 21. Qxe4 {[%clk
0:00:41.8]} 21... Rc3 {[%clk 0:01:04.9]} 22. Qb1 {[%clk 0:00:27.7]} 22... Qc7
{[%clk 0:01:04]} 23. Rc1 {[%clk 0:00:25.2]} 23... Rc8 {[%clk 0:01:03.5]} 24.
Rxc3 {[%clk 0:00:23.4]} 24... Qxc3 {[%clk 0:01:03.1]} 25. Qf1 {[%clk 0:00:22.9]}
25... Qd2 {[%clk 0:00:52.4]} 26. Nb7 {[%clk 0:00:20.5]} 26... Rc7 {[%clk
0:00:41.9]} 27. Rd1 {[%clk 0:00:17.4]} 27... Qd7 {[%clk 0:00:34.3]} 28. Rxd7
{[%clk 0:00:16.6]} 28... Rxd7 {[%clk 0:00:35.2]} 29. Nc5 {[%clk 0:00:16.6]}
29... Rd6 {[%clk 0:00:33.1]} 30. h3 {[%clk 0:00:13.4]} 30... h6 {[%clk 0:00:34]}
31. Kh2 {[%clk 0:00:13.5]} 31... f5 {[%clk 0:00:33.7]} 32. Qe2 {[%clk
0:00:13.4]} 32... g6 {[%clk 0:00:32.3]} 33. Qf3 {[%clk 0:00:14.3]} 33... Kf7
{[%clk 0:00:31]} 34. Qb7+ {[%clk 0:00:13.7]} 34... Kf6 {[%clk 0:00:31.1]} 35.
Nxa6 {[%clk 0:00:13.6]} 35... Rd2 {[%clk 0:00:30.4]} 36. Qxb5 {[%clk 0:00:13.3]}
36... Rxf2 {[%clk 0:00:29.7]} 37. Nc5 {[%clk 0:00:13.4]} 37... g5 {[%clk
0:00:26.2]} 38. Qc6 {[%clk 0:00:13.5]} 38... Kg6 {[%clk 0:00:23.7]} 39. Qxe6+
{[%clk 0:00:13.3]} 39... Kh5 {[%clk 0:00:23.9]} 40. b5 {[%clk 0:00:10]} 40... g4
{[%clk 0:00:20.4]} 41. Qf7+ {[%clk 0:00:09.8]} 41... Kg5 {[%clk 0:00:19.3]} 42.
Ne6+ {[%clk 0:00:09.2]} 42... Kh4 {[%clk 0:00:19]} 43. Qf6+ {[%clk 0:00:09]}
43... Kh5 {[%clk 0:00:19]} 44. Nf4+ {[%clk 0:00:06.5]} 44... Rxf4 {[%clk
0:00:18]} 45. Qf7+ {[%clk 0:00:04]} 45... Kg5 {[%clk 0:00:17.8]} 46. exf4+
{[%clk 0:00:04.1]} 46... Kh4 {[%clk 0:00:14.9]} 47. Qc7 {[%clk 0:00:05]} 47...
g3+ {[%clk 0:00:11]} 48. Kh1 {[%clk 0:00:04.4]} 48... Kh5 {[%clk 0:00:11.2]} 49.
b6 {[%clk 0:00:04.6]} 49... Kh4 {[%clk 0:00:11.5]} 50. b7 {[%clk 0:00:05.5]}
50... Kh5 {[%clk 0:00:12]} 51. b8=Q {[%clk 0:00:05.6]} 51... Kh4 {[%clk
0:00:12.9]} 52. Qe7+ {[%clk 0:00:04.5]} 52... Kh5 {[%clk 0:00:13.2]} 53. Qbe8#
{[%clk 0:00:04.5]} 1-0